[Event "Titled Tuesday Blitz September 27 Early 2022"]
[White "Wirig, Anthony"]
[Black "Koziorowicz, Michal"]
[WhiteFideId "615013"]
[BlackFideId "21809194"]
[WhiteElo "2474"]
[BlackElo "2220"]
[Result "1-0"]
[Round "06"]
[TimeControl "180+1"]
[Date "2022.09.27"]
[WhiteClock "0:00:10"]
[BlackClock "0:00:09"]

1. d4 {[%clk 0:02:59]}  Nf6 {[%clk 0:02:57]} 2. Bg5 {[%clk 0:02:58]}  e6 {[%clk 0:02:52]} 3. e3 {[%clk 0:02:56]}  Be7 {[%clk 0:02:46]} 4. Nd2 {[%clk 0:02:55]}  b6 {[%clk 0:02:44]} 5. Qf3 {[%clk 0:02:47]}  Nc6 {[%clk 0:02:39]} 6. c3 {[%clk 0:02:42]}  Bb7 {[%clk 0:02:38]} 7. Qh3 {[%clk 0:02:42]}  h6 {[%clk 0:02:36]} 8. Ngf3 {[%clk 0:02:17]}  d6 {[%clk 0:02:21]} 9. Bb5 {[%clk 0:02:10]}  a6 {[%clk 0:02:19]} 10. Bd3 {[%clk 0:02:06]}  Qd7 {[%clk 0:02:19]} 11. a4 {[%clk 0:02:01]}  O-O-O {[%clk 0:02:15]} 12. Bxf6 {[%clk 0:02:00]}  Bxf6 {[%clk 0:02:16]} 13. b4 {[%clk 0:01:51]}  Ne7 {[%clk 0:02:11]} 14. a5 {[%clk 0:01:41]}  b5 {[%clk 0:02:11]} 15. c4 {[%clk 0:01:40]}  c6 {[%clk 0:02:02]} 16. Rc1 {[%clk 0:01:22]}  Kb8 {[%clk 0:01:50]} 17. c5 {[%clk 0:01:17]}  d5 {[%clk 0:01:36]} 18. Ne5 {[%clk 0:01:05]}  Qe8 {[%clk 0:01:15]} 19. f4 {[%clk 0:01:02]}  g6 {[%clk 0:01:12]} 20. O-O {[%clk 0:00:55]}  Bc8 {[%clk 0:01:11]} 21. Qf3 {[%clk 0:00:54]}  Kb7 {[%clk 0:01:09]} 22. Qe2 {[%clk 0:00:51]}  Bg7 {[%clk 0:01:06]} 23. Nb1 {[%clk 0:00:49]}  f6 {[%clk 0:01:01]} 24. Nf3 {[%clk 0:00:48]}  h5 {[%clk 0:00:50]} 25. Nc3 {[%clk 0:00:47]}  Nf5 {[%clk 0:00:48]} 26. Rcd1 {[%clk 0:00:43]}  e5 {[%clk 0:00:41]} 27. fxe5 {[%clk 0:00:33]}  fxe5 {[%clk 0:00:42]} 28. Bxf5 {[%clk 0:00:30]}  Bxf5 {[%clk 0:00:42]} 29. dxe5 {[%clk 0:00:26]}  Bxe5 {[%clk 0:00:43]} 30. Nxe5 {[%clk 0:00:24]}  Qxe5 {[%clk 0:00:44]} 31. Qd2 {[%clk 0:00:24]}  Rhe8 {[%clk 0:00:44]} 32. Rfe1 {[%clk 0:00:19]}  Bg4 {[%clk 0:00:44]} 33. Rc1 {[%clk 0:00:19]}  Qg5 {[%clk 0:00:34]} 34. Qd4 {[%clk 0:00:15]}  Re5 {[%clk 0:00:32]} 35. Rc2 {[%clk 0:00:13]}  Rde8 {[%clk 0:00:32]} 36. Rf2 {[%clk 0:00:14]}  R8e7 {[%clk 0:00:22]} 37. Ref1 {[%clk 0:00:12]}  Qxe3 {[%clk 0:00:20]} 38. Qxe3 {[%clk 0:00:09]}  Rxe3 {[%clk 0:00:21]} 39. Nb1 {[%clk 0:00:09]}  Re1 {[%clk 0:00:21]} 40. Nd2 {[%clk 0:00:08]}  Rxf1+ {[%clk 0:00:21]} 41. Kxf1 {[%clk 0:00:09]}  Re3 {[%clk 0:00:19]} 42. h3 {[%clk 0:00:09]}  Bf5 {[%clk 0:00:19]} 43. g4 {[%clk 0:00:09]}  hxg4 {[%clk 0:00:19]} 44. hxg4 {[%clk 0:00:10]}  Bxg4 {[%clk 0:00:20]} 45. Rf7+ {[%clk 0:00:10]}  Kb8 {[%clk 0:00:20]} 46. Rf6 {[%clk 0:00:10]}  Bf5 {[%clk 0:00:21]} 47. Rxc6 {[%clk 0:00:10]}  Kb7 {[%clk 0:00:21]} 48. Rb6+ {[%clk 0:00:10]}  Ka7 {[%clk 0:00:22]} 49. c6 {[%clk 0:00:10]}  Rd3 {[%clk 0:00:21]} 50. Ke2 {[%clk 0:00:11]}  Rd4 {[%clk 0:00:21]} 51. Nf3 {[%clk 0:00:08]}  Rxb4 {[%clk 0:00:20]} 52. Ke3 {[%clk 0:00:08]}  d4+ {[%clk 0:00:19]} 53. Nxd4 {[%clk 0:00:08]}  Rc4 {[%clk 0:00:17]} 54. Rb7+ {[%clk 0:00:07]}  Ka8 {[%clk 0:00:17]} 55. Rb6 {[%clk 0:00:07]}  Ka7 {[%clk 0:00:17]} 56. Nf3 {[%clk 0:00:04]}  b4 {[%clk 0:00:15]} 57. Nd4 {[%clk 0:00:04]}  Bc8 {[%clk 0:00:12]} 58. Kd3 {[%clk 0:00:04]}  Rc3+ {[%clk 0:00:13]} 59. Ke4 {[%clk 0:00:04]}  Rc4 {[%clk 0:00:13]} 60. Kd5 {[%clk 0:00:05]}  Rc1 {[%clk 0:00:14]} 61. Rxb4 {[%clk 0:00:05]}  g5 {[%clk 0:00:14]} 62. Rb6 {[%clk 0:00:05]}  g4 {[%clk 0:00:14]} 63. c7 {[%clk 0:00:05]}  Rxc7 {[%clk 0:00:13]} 64. Nc6+ {[%clk 0:00:05]}  Rxc6 {[%clk 0:00:13]} 65. Kxc6 {[%clk 0:00:05]}  g3 {[%clk 0:00:12]} 66. Rb3 {[%clk 0:00:06]}  g2 {[%clk 0:00:12]} 67. Rg3 {[%clk 0:00:06]}  Bb7+ {[%clk 0:00:12]} 68. Kd6 {[%clk 0:00:07]}  Kb8 {[%clk 0:00:12]} 69. Rg7 {[%clk 0:00:07]}  Ka7 {[%clk 0:00:09]} 70. Kc7 {[%clk 0:00:07]}  Ka8 {[%clk 0:00:10]} 71. Kb6 {[%clk 0:00:08]}  Kb8 {[%clk 0:00:09]} 72. Rg8+ {[%clk 0:00:08]}  Bc8 {[%clk 0:00:08]} 73. Rxg2 {[%clk 0:00:09]}  Bb7 {[%clk 0:00:07]} 74. Rg8+ {[%clk 0:00:09]}  Bc8 {[%clk 0:00:08]} 75. Rh8 {[%clk 0:00:10]}  Ka8 {[%clk 0:00:09]} 76. Rxc8# {[%clk 0:00:10]} 1-0


[Site "https://www.chess.com"]

[Event "Titled Tuesday Blitz September 27 Early 2022"]
[White "Zelbel, Patrick"]
[Black "Nakamura, Hikaru"]
[WhiteFideId "24624322"]
[BlackFideId "2016192"]
[WhiteElo "2474"]
[BlackElo "2850"]
[Result "0-1"]
[Round "06"]
[TimeControl "180+1"]
[Date "2022.09.27"]
[WhiteClock "0:00:15"]
[BlackClock "0:01:14"]

1. e4 {[%clk 0:03:00]}  g6 {[%clk 0:02:57]} 2. d4 {[%clk 0:03:00]}  Bg7 {[%clk 0:02:53]} 3. Nc3 {[%clk 0:03:01]}  a6 {[%clk 0:02:52]} 4. Be3 {[%clk 0:02:59]}  b5 {[%clk 0:02:52]} 5. g4 {[%clk 0:02:59]}  Bb7 {[%clk 0:02:52]} 6. Bg2 {[%clk 0:02:59]}  d6 {[%clk 0:02:48]} 7. h4 {[%clk 0:02:59]}  e6 {[%clk 0:02:42]} 8. h5 {[%clk 0:02:59]}  Nf6 {[%clk 0:02:42]} 9. h6 {[%clk 0:02:57]}  Bf8 {[%clk 0:02:43]} 10. g5 {[%clk 0:02:55]}  Nfd7 {[%clk 0:02:39]} 11. Nge2 {[%clk 0:02:55]}  Nb6 {[%clk 0:02:38]} 12. b3 {[%clk 0:02:48]}  Be7 {[%clk 0:02:37]} 13. Qd2 {[%clk 0:02:45]}  N8d7 {[%clk 0:02:37]} 14. Ng3 {[%clk 0:02:41]}  c5 {[%clk 0:02:29]} 15. a4 {[%clk 0:02:15]}  b4 {[%clk 0:02:23]} 16. Nce2 {[%clk 0:02:15]}  a5 {[%clk 0:02:23]} 17. O-O {[%clk 0:02:04]}  c4 {[%clk 0:02:19]} 18. f4 {[%clk 0:01:59]}  Qc7 {[%clk 0:02:15]} 19. Rac1 {[%clk 0:01:46]}  d5 {[%clk 0:02:04]} 20. e5 {[%clk 0:01:20]}  Rc8 {[%clk 0:01:57]} 21. Kh2 {[%clk 0:01:19]}  O-O {[%clk 0:01:55]} 22. Bh3 {[%clk 0:01:09]}  Rce8 {[%clk 0:01:43]} 23. Qe1 {[%clk 0:00:57]}  Bc8 {[%clk 0:01:34]} 24. Qf2 {[%clk 0:00:55]}  Nb8 {[%clk 0:01:34]} 25. Qg2 {[%clk 0:00:48]}  Nc6 {[%clk 0:01:25]} 26. Bg4 {[%clk 0:00:48]}  Bd8 {[%clk 0:01:25]} 27. Qf3 {[%clk 0:00:43]}  Ne7 {[%clk 0:01:25]} 28. Qg2 {[%clk 0:00:42]}  Qb8 {[%clk 0:01:24]} 29. Qh3 {[%clk 0:00:42]}  Bd7 {[%clk 0:01:24]} 30. Qg2 {[%clk 0:00:41]}  Bc7 {[%clk 0:01:25]} 31. Qf3 {[%clk 0:00:41]}  Rc8 {[%clk 0:01:25]} 32. Bh3 {[%clk 0:00:29]}  Bd8 {[%clk 0:01:24]} 33. Rg1 {[%clk 0:00:21]}  Rc6 {[%clk 0:01:24]} 34. Rgf1 {[%clk 0:00:21]}  Bc7 {[%clk 0:01:24]} 35. Rg1 {[%clk 0:00:20]}  Rc8 {[%clk 0:01:24]} 36. Kh1 {[%clk 0:00:19]}  Bd8 {[%clk 0:01:24]} 37. Nh5 {[%clk 0:00:18]}  gxh5 {[%clk 0:01:23]} 38. Ng3 {[%clk 0:00:18]}  cxb3 {[%clk 0:01:19]} 39. cxb3 {[%clk 0:00:19]}  Rxc1 {[%clk 0:01:19]} 40. Bxc1 {[%clk 0:00:20]}  h4 {[%clk 0:01:15]} 41. Nh5 {[%clk 0:00:20]}  Ng6 {[%clk 0:01:16]} 42. Nf6+ {[%clk 0:00:20]}  Bxf6 {[%clk 0:01:16]} 43. gxf6 {[%clk 0:00:20]}  Rc3 {[%clk 0:01:16]} 44. Qg4 {[%clk 0:00:15]}  Qc8 {[%clk 0:01:15]} 45. Qxh4 {[%clk 0:00:15]}  Rxc1 {[%clk 0:01:15]} 46. Rxc1 {[%clk 0:00:15]}  Qxc1+ {[%clk 0:01:14]} 0-1


[Site "https://www.chess.com"]

[Event "Titled Tuesday Blitz September 27 Early 2022"]
[White "Zhao, Jun"]
[Black "Jovic, Stanoje"]
[WhiteFideId "8602522"]
[BlackFideId "905020"]
[WhiteElo "2547"]
[BlackElo "2238"]
[Result "0-1"]
[Round "06"]
[TimeControl "180+1"]
[Date "2022.09.27"]
[WhiteClock "0:00:31"]
[BlackClock "0:01:15"]

1. e4 {[%clk 0:02:55]}  c6 {[%clk 0:02:59]} 2. Nf3 {[%clk 0:02:54]}  d5 {[%clk 0:02:59]} 3. Nc3 {[%clk 0:02:54]}  dxe4 {[%clk 0:02:59]} 4. Nxe4 {[%clk 0:02:54]}  Nf6 {[%clk 0:02:59]} 5. d3 {[%clk 0:02:54]}  Nxe4 {[%clk 0:02:58]} 6. dxe4 {[%clk 0:02:54]}  Qxd1+ {[%clk 0:02:58]} 7. Kxd1 {[%clk 0:02:55]}  Bg4 {[%clk 0:02:58]} 8. c3 {[%clk 0:02:53]}  Nd7 {[%clk 0:02:56]} 9. Kc2 {[%clk 0:02:53]}  Bxf3 {[%clk 0:02:55]} 10. gxf3 {[%clk 0:02:53]}  e5 {[%clk 0:02:55]} 11. Bh3 {[%clk 0:02:49]}  Bc5 {[%clk 0:02:53]} 12. Rd1 {[%clk 0:02:41]}  Rd8 {[%clk 0:02:48]} 13. Bg5 {[%clk 0:02:03]}  f6 {[%clk 0:02:40]} 14. Be3 {[%clk 0:01:51]}  Bxe3 {[%clk 0:02:34]} 15. fxe3 {[%clk 0:01:52]}  Nb6 {[%clk 0:02:30]} 16. a4 {[%clk 0:01:40]}  Ke7 {[%clk 0:02:26]} 17. b3 {[%clk 0:01:31]}  Rxd1 {[%clk 0:02:24]} 18. Rxd1 {[%clk 0:01:30]}  Rd8 {[%clk 0:02:24]} 19. Rh1 {[%clk 0:01:31]}  a5 {[%clk 0:02:17]} 20. Rg1 {[%clk 0:01:22]}  g6 {[%clk 0:02:15]} 21. Bf1 {[%clk 0:01:19]}  Nd7 {[%clk 0:02:07]} 22. Bc4 {[%clk 0:01:15]}  Nc5 {[%clk 0:02:07]} 23. Ra1 {[%clk 0:01:14]}  Ne6 {[%clk 0:02:04]} 24. b4 {[%clk 0:01:10]}  Ng5 {[%clk 0:02:00]} 25. Be2 {[%clk 0:01:10]}  Ra8 {[%clk 0:01:59]} 26. Kb3 {[%clk 0:00:57]}  Ne6 {[%clk 0:01:57]} 27. Bc4 {[%clk 0:00:55]}  Nf8 {[%clk 0:01:55]} 28. f4 {[%clk 0:00:54]}  Nd7 {[%clk 0:01:54]} 29. Rf1 {[%clk 0:00:53]}  Rf8 {[%clk 0:01:48]} 30. Rd1 {[%clk 0:00:52]}  Ra8 {[%clk 0:01:43]} 31. Rf1 {[%clk 0:00:51]}  Rf8 {[%clk 0:01:40]} 32. h4 {[%clk 0:00:50]}  Kd6 {[%clk 0:01:33]} 33. Rd1+ {[%clk 0:00:49]}  Kc7 {[%clk 0:01:33]} 34. Be6 {[%clk 0:00:48]}  Nb8 {[%clk 0:01:27]} 35. bxa5 {[%clk 0:00:44]}  Re8 {[%clk 0:01:20]} 36. f5 {[%clk 0:00:31]}  Re7 {[%clk 0:01:15]} 0-1


[Site "https://www.chess.com"]

[Event "Titled Tuesday Blitz September 27 Early 2022"]
[White "Aakanksha Hagawane"]
[Black "Paiva, Henrique M A Albergaria"]
[WhiteFideId "25014510"]
[BlackFideId "1920995"]
[WhiteElo "1971"]
[BlackElo "1975"]
[Result "1-0"]
[Round "07"]
[TimeControl "180+1"]
[Date "2022.09.27"]
[WhiteClock "0:00:32"]
[BlackClock "0:00:13"]

1. d4 {[%clk 0:02:55]}  d5 {[%clk 0:02:58]} 2. Nf3 {[%clk 0:02:53]}  c6 {[%clk 0:02:57]} 3. e3 {[%clk 0:02:50]}  Nf6 {[%clk 0:02:57]} 4. Bd3 {[%clk 0:02:50]}  e6 {[%clk 0:02:56]} 5. c3 {[%clk 0:02:48]}  Bd6 {[%clk 0:02:56]} 6. O-O {[%clk 0:02:48]}  O-O {[%clk 0:02:56]} 7. Nbd2 {[%clk 0:02:48]}  Nbd7 {[%clk 0:02:55]} 8. b3 {[%clk 0:02:48]}  e5 {[%clk 0:02:56]} 9. dxe5 {[%clk 0:02:47]}  Nxe5 {[%clk 0:02:56]} 10. Nxe5 {[%clk 0:02:47]}  Bxe5 {[%clk 0:02:57]} 11. Bb2 {[%clk 0:02:47]}  Re8 {[%clk 0:02:54]} 12. h3 {[%clk 0:02:46]}  h6 {[%clk 0:02:53]} 13. Nf3 {[%clk 0:02:45]}  Bc7 {[%clk 0:02:52]} 14. c4 {[%clk 0:02:46]}  Be6 {[%clk 0:02:50]} 15. cxd5 {[%clk 0:02:45]}  Bxd5 {[%clk 0:02:50]} 16. Be2 {[%clk 0:02:40]}  Qe7 {[%clk 0:02:49]} 17. Qd4 {[%clk 0:02:38]}  Rad8 {[%clk 0:02:48]} 18. Qh4 {[%clk 0:02:36]}  Ne4 {[%clk 0:02:33]} 19. Qg4 {[%clk 0:02:21]}  Nf6 {[%clk 0:02:20]} 20. Qh4 {[%clk 0:02:18]}  Ne4 {[%clk 0:02:17]} 21. Qxe7 {[%clk 0:02:17]}  Rxe7 {[%clk 0:02:17]} 22. Rfd1 {[%clk 0:02:16]}  Nf6 {[%clk 0:01:41]} 23. Rac1 {[%clk 0:02:06]}  Bb6 {[%clk 0:01:36]} 24. Nd4 {[%clk 0:02:03]}  Red7 {[%clk 0:01:34]} 25. Nf5 {[%clk 0:02:01]}  Ne8 {[%clk 0:01:16]} 26. g4 {[%clk 0:01:19]}  Be4 {[%clk 0:01:09]} 27. Ng3 {[%clk 0:01:14]}  Bg6 {[%clk 0:01:08]} 28. Rxd7 {[%clk 0:01:11]}  Rxd7 {[%clk 0:01:09]} 29. Rd1 {[%clk 0:01:11]}  Rxd1+ {[%clk 0:01:09]} 30. Bxd1 {[%clk 0:01:11]}  Nd6 {[%clk 0:01:10]} 31. Kf1 {[%clk 0:01:11]}  f5 {[%clk 0:01:08]} 32. Ke2 {[%clk 0:01:08]}  fxg4 {[%clk 0:01:09]} 33. hxg4 {[%clk 0:01:08]}  Bf7 {[%clk 0:01:02]} 34. f4 {[%clk 0:01:07]}  Nc8 {[%clk 0:00:52]} 35. Bc2 {[%clk 0:01:07]}  Ne7 {[%clk 0:00:52]} 36. Kf3 {[%clk 0:01:06]}  Nd5 {[%clk 0:00:49]} 37. Nf5 {[%clk 0:01:04]}  Be6 {[%clk 0:00:43]} 38. e4 {[%clk 0:01:00]}  Bxf5 {[%clk 0:00:41]} 39. gxf5 {[%clk 0:00:58]}  Nc7 {[%clk 0:00:39]} 40. b4 {[%clk 0:00:54]}  a5 {[%clk 0:00:37]} 41. Bb3+ {[%clk 0:00:54]}  Kf8 {[%clk 0:00:36]} 42. bxa5 {[%clk 0:00:52]}  Bxa5 {[%clk 0:00:37]} 43. Ba3+ {[%clk 0:00:52]}  Ke8 {[%clk 0:00:37]} 44. e5 {[%clk 0:00:53]}  Nb5 {[%clk 0:00:34]} 45. Bc5 {[%clk 0:00:50]}  b6 {[%clk 0:00:31]} 46. Be3 {[%clk 0:00:50]}  c5 {[%clk 0:00:31]} 47. Ke4 {[%clk 0:00:49]}  Ke7 {[%clk 0:00:31]} 48. Kd5 {[%clk 0:00:48]}  Nc3+ {[%clk 0:00:26]} 49. Kc6 {[%clk 0:00:48]}  Ne2 {[%clk 0:00:22]} 50. Bc4 {[%clk 0:00:46]}  Nd4+ {[%clk 0:00:19]} 51. Kd5 {[%clk 0:00:39]}  Nxf5 {[%clk 0:00:19]} 52. Bf2 {[%clk 0:00:39]}  Bc3 {[%clk 0:00:18]} 53. Ke4 {[%clk 0:00:39]}  Nd4 {[%clk 0:00:17]} 54. Bh4+ {[%clk 0:00:38]}  Kd7 {[%clk 0:00:15]} 55. f5 {[%clk 0:00:37]}  Nc6 {[%clk 0:00:12]} 56. e6+ {[%clk 0:00:37]}  Kd6 {[%clk 0:00:13]} 57. Bd5 {[%clk 0:00:32]}  Ne7 {[%clk 0:00:13]} 58. Bg3+ {[%clk 0:00:32]} 1-0


[Site "https://www.chess.com"]

[Event "Titled Tuesday Blitz September 27 Early 2022"]
[White "Agasarov, Benik"]
[Black "Bartel, Michal"]
[WhiteFideId "13314823"]
[BlackFideId "1119257"]
[WhiteElo "2725"]
[BlackElo "2530"]
[Result "1/2-1/2"]
[Round "07"]
[TimeControl "180+1"]
[Date "2022.09.27"]
[WhiteClock "0:00:37"]
[BlackClock "0:00:49"]

1. e4 {[%clk 0:02:59]}  e5 {[%clk 0:03:00]} 2. Nf3 {[%clk 0:02:51]}  Nc6 {[%clk 0:02:59]} 3. Bc4 {[%clk 0:02:48]}  Nf6 {[%clk 0:02:57]} 4. d3 {[%clk 0:02:47]}  h6 {[%clk 0:02:57]} 5. c3 {[%clk 0:02:43]}  g6 {[%clk 0:02:57]} 6. a4 {[%clk 0:02:25]}  Bg7 {[%clk 0:02:55]} 7. b4 {[%clk 0:02:25]}  d6 {[%clk 0:02:55]} 8. h3 {[%clk 0:02:24]}  O-O {[%clk 0:02:54]} 9. Nbd2 {[%clk 0:02:23]}  a6 {[%clk 0:02:52]} 10. Nf1 {[%clk 0:02:23]}  d5 {[%clk 0:02:52]} 11. exd5 {[%clk 0:02:22]}  Nxd5 {[%clk 0:02:53]} 12. Qb3 {[%clk 0:02:23]}  Be6 {[%clk 0:02:51]} 13. Ne3 {[%clk 0:02:22]}  Nce7 {[%clk 0:02:43]} 14. O-O {[%clk 0:02:17]}  c6 {[%clk 0:02:43]} 15. a5 {[%clk 0:02:09]}  Qd7 {[%clk 0:02:38]} 16. Re1 {[%clk 0:02:04]}  Rad8 {[%clk 0:02:38]} 17. Nc2 {[%clk 0:01:57]}  Qc7 {[%clk 0:02:28]} 18. d4 {[%clk 0:01:50]}  exd4 {[%clk 0:02:09]} 19. Ncxd4 {[%clk 0:01:49]}  Bc8 {[%clk 0:02:08]} 20. Bd2 {[%clk 0:01:43]}  Nf5 {[%clk 0:02:04]} 21. Rad1 {[%clk 0:01:36]}  Nxd4 {[%clk 0:02:04]} 22. Nxd4 {[%clk 0:01:36]}  Nxb4 {[%clk 0:01:57]} 23. Ne6 {[%clk 0:01:05]}  Bxe6 {[%clk 0:01:53]} 24. cxb4 {[%clk 0:00:58]}  Bxc4 {[%clk 0:01:52]} 25. Qxc4 {[%clk 0:00:59]}  Rd4 {[%clk 0:01:52]} 26. Qb3 {[%clk 0:00:57]}  Rfd8 {[%clk 0:01:49]} 27. Be3 {[%clk 0:00:56]}  Rxd1 {[%clk 0:01:49]} 28. Rxd1 {[%clk 0:00:57]}  Rxd1+ {[%clk 0:01:44]} 29. Qxd1 {[%clk 0:00:58]}  Bf8 {[%clk 0:01:43]} 30. Qd2 {[%clk 0:00:58]}  Qd6 {[%clk 0:01:37]} 31. Bxh6 {[%clk 0:00:47]}  Qxd2 {[%clk 0:01:29]} 32. Bxd2 {[%clk 0:00:47]}  f5 {[%clk 0:01:29]} 33. g4 {[%clk 0:00:46]}  Kf7 {[%clk 0:01:30]} 34. Kg2 {[%clk 0:00:46]}  Ke6 {[%clk 0:01:30]} 35. Kf3 {[%clk 0:00:46]}  fxg4+ {[%clk 0:01:30]} 36. Kxg4 {[%clk 0:00:46]}  Be7 {[%clk 0:01:28]} 37. h4 {[%clk 0:00:42]}  Kd5 {[%clk 0:01:28]} 38. h5 {[%clk 0:00:37]}  gxh5+ {[%clk 0:01:28]} 39. Kxh5 {[%clk 0:00:38]}  Kc4 {[%clk 0:01:29]} 40. f4 {[%clk 0:00:38]}  Kd3 {[%clk 0:01:12]} 41. Be1 {[%clk 0:00:38]}  Ke2 {[%clk 0:01:01]} 42. Bc3 {[%clk 0:00:38]}  Kd3 {[%clk 0:01:01]} 43. Be1 {[%clk 0:00:37]}  Ke2 {[%clk 0:00:49]} 44. Bc3 {[%clk 0:00:37]}  Kd3 {[%clk 0:00:49]} 45. Be1 {[%clk 0:00:37]} 1/2-1/2


[Site "https://www.chess.com"]

[Event "Titled Tuesday Blitz September 27 Early 2022"]
[White "Aliakbarov, Anar"]
[Black "Ozen, Bahadir"]
[WhiteFideId "13401858"]
[BlackFideId "6337058"]
[WhiteElo "2210"]
[BlackElo "2503"]
[Result "1/2-1/2"]
[Round "07"]
[TimeControl "180+1"]
[Date "2022.09.27"]
[WhiteClock "0:01:32"]
[BlackClock "0:00:28"]

1. d4 {[%clk 0:03:00]}  g6 {[%clk 0:03:00]} 2. c4 {[%clk 0:02:53]}  Bg7 {[%clk 0:03:00]} 3. Nf3 {[%clk 0:02:50]}  d6 {[%clk 0:03:00]} 4. e4 {[%clk 0:02:45]}  e5 {[%clk 0:02:59]} 5. Be2 {[%clk 0:02:43]}  exd4 {[%clk 0:02:57]} 6. Nxd4 {[%clk 0:02:44]}  Nc6 {[%clk 0:02:58]} 7. Nxc6 {[%clk 0:02:43]}  bxc6 {[%clk 0:02:58]} 8. O-O {[%clk 0:02:44]}  Ne7 {[%clk 0:02:57]} 9. Nc3 {[%clk 0:02:45]}  O-O {[%clk 0:02:57]} 10. Be3 {[%clk 0:02:41]}  c5 {[%clk 0:02:54]} 11. f4 {[%clk 0:02:39]}  Rb8 {[%clk 0:02:53]} 12. Rb1 {[%clk 0:02:39]}  f5 {[%clk 0:02:52]} 13. e5 {[%clk 0:02:38]}  a6 {[%clk 0:02:24]} 14. Bf3 {[%clk 0:02:36]}  Be6 {[%clk 0:02:22]} 15. Nd5 {[%clk 0:02:32]}  Bxd5 {[%clk 0:02:00]} 16. Bxd5+ {[%clk 0:02:29]}  Kh8 {[%clk 0:01:59]} 17. b3 {[%clk 0:02:21]}  Nxd5 {[%clk 0:01:50]} 18. Qxd5 {[%clk 0:02:20]}  dxe5 {[%clk 0:01:45]} 19. fxe5 {[%clk 0:02:16]}  Qxd5 {[%clk 0:01:43]} 20. cxd5 {[%clk 0:02:17]}  Bxe5 {[%clk 0:01:43]} 21. Bxc5 {[%clk 0:02:18]}  Rfd8 {[%clk 0:01:43]} 22. Rfe1 {[%clk 0:02:14]}  Bg7 {[%clk 0:01:36]} 23. Rbd1 {[%clk 0:02:10]}  Rd7 {[%clk 0:01:37]} 24. Re6 {[%clk 0:02:06]}  a5 {[%clk 0:01:30]} 25. Ra6 {[%clk 0:02:01]}  Bc3 {[%clk 0:01:27]} 26. Rd3 {[%clk 0:02:00]}  Bb4 {[%clk 0:01:24]} 27. Bxb4 {[%clk 0:01:58]}  axb4 {[%clk 0:01:25]} 28. Ra7 {[%clk 0:01:56]}  Rbd8 {[%clk 0:01:23]} 29. h3 {[%clk 0:01:51]}  Rxd5 {[%clk 0:01:21]} 30. Rxd5 {[%clk 0:01:52]}  Rxd5 {[%clk 0:01:22]} 31. Rxc7 {[%clk 0:01:52]}  Rd2 {[%clk 0:01:21]} 32. Ra7 {[%clk 0:01:48]}  f4 {[%clk 0:01:12]} 33. h4 {[%clk 0:01:47]}  h6 {[%clk 0:01:12]} 34. Kh2 {[%clk 0:01:45]}  f3 {[%clk 0:01:12]} 35. Kg1 {[%clk 0:01:41]}  Rxg2+ {[%clk 0:01:11]} 36. Kf1 {[%clk 0:01:41]}  g5 {[%clk 0:01:11]} 37. hxg5 {[%clk 0:01:37]}  hxg5 {[%clk 0:01:11]} 38. Ra4 {[%clk 0:01:37]}  g4 {[%clk 0:00:57]} 39. Rxb4 {[%clk 0:01:37]}  Kh7 {[%clk 0:00:35]} 40. a4 {[%clk 0:01:35]}  Rb2 {[%clk 0:00:27]} 41. Rxg4 {[%clk 0:01:34]}  Rxb3 {[%clk 0:00:27]} 42. Rg3 {[%clk 0:01:32]}  Ra3 {[%clk 0:00:27]} 43. Kf2 {[%clk 0:01:32]}  Rxa4 {[%clk 0:00:28]} 1/2-1/2


[Site "https://www.chess.com"]

[Event "Titled Tuesday Blitz September 27 Early 2022"]
[White "Arabidze, Meri"]
[Black "Wachinger, Guenther"]
[WhiteFideId "13604040"]
[BlackFideId "4604261"]
[WhiteElo "2335"]
[BlackElo "2212"]
[Result "1-0"]
[Round "07"]
[TimeControl "180+1"]
[Date "2022.09.27"]
[WhiteClock "0:00:22"]
[BlackClock "0:00:02"]

1. Nf3 {[%clk 0:03:00]}  c5 {[%clk 0:02:55]} 2. g3 {[%clk 0:03:00]}  g6 {[%clk 0:02:54]} 3. c4 {[%clk 0:03:00]}  Nc6 {[%clk 0:02:52]} 4. Bg2 {[%clk 0:03:01]}  Bg7 {[%clk 0:02:52]} 5. O-O {[%clk 0:03:01]}  e5 {[%clk 0:02:52]} 6. Nc3 {[%clk 0:03:01]}  Nge7 {[%clk 0:02:52]} 7. d3 {[%clk 0:03:01]}  O-O {[%clk 0:02:52]} 8. Bg5 {[%clk 0:03:02]}  f6 {[%clk 0:02:49]} 9. Bd2 {[%clk 0:03:02]}  h6 {[%clk 0:02:45]} 10. a3 {[%clk 0:03:02]}  a5 {[%clk 0:02:41]} 11. Ne1 {[%clk 0:03:02]}  f5 {[%clk 0:02:40]} 12. Nc2 {[%clk 0:03:01]}  d6 {[%clk 0:02:39]} 13. Ne3 {[%clk 0:03:01]}  f4 {[%clk 0:02:35]} 14. Ned5 {[%clk 0:03:00]}  g5 {[%clk 0:02:36]} 15. Ne4 {[%clk 0:02:49]}  Nxd5 {[%clk 0:02:30]} 16. cxd5 {[%clk 0:02:50]}  Ne7 {[%clk 0:02:31]} 17. b4 {[%clk 0:02:47]}  b6 {[%clk 0:02:26]} 18. bxc5 {[%clk 0:02:38]}  bxc5 {[%clk 0:02:26]} 19. Rb1 {[%clk 0:02:32]}  Kh8 {[%clk 0:02:15]} 20. Qb3 {[%clk 0:02:31]}  Bg4 {[%clk 0:02:13]} 21. Rfe1 {[%clk 0:02:24]}  Nf5 {[%clk 0:02:07]} 22. f3 {[%clk 0:02:17]}  Nd4 {[%clk 0:02:05]} 23. Qb6 {[%clk 0:02:16]}  Bf5 {[%clk 0:01:53]} 24. Qxd6 {[%clk 0:02:05]}  Qxd6 {[%clk 0:01:44]} 25. Nxd6 {[%clk 0:02:06]}  Nxe2+ {[%clk 0:01:44]} 26. Rxe2 {[%clk 0:02:03]}  Bxd3 {[%clk 0:01:45]} 27. Ree1 {[%clk 0:02:00]}  Bxb1 {[%clk 0:01:45]} 28. Rxb1 {[%clk 0:02:00]}  Rad8 {[%clk 0:01:45]} 29. Rb6 {[%clk 0:01:56]}  e4 {[%clk 0:01:25]} 30. Nxe4 {[%clk 0:01:43]}  Rxd5 {[%clk 0:01:22]} 31. gxf4 {[%clk 0:01:42]}  c4 {[%clk 0:01:14]} 32. Rc6 {[%clk 0:01:39]}  c3 {[%clk 0:01:03]} 33. Bxc3 {[%clk 0:01:36]}  Rxf4 {[%clk 0:01:01]} 34. Rxh6+ {[%clk 0:01:32]}  Kg8 {[%clk 0:01:00]} 35. Rg6 {[%clk 0:01:32]}  Rd1+ {[%clk 0:00:45]} 36. Kf2 {[%clk 0:01:29]}  Rf7 {[%clk 0:00:45]} 37. Nxg5 {[%clk 0:01:16]}  Rc7 {[%clk 0:00:43]} 38. Be5 {[%clk 0:00:52]}  Re7 {[%clk 0:00:16]} 39. f4 {[%clk 0:00:51]}  Kf8 {[%clk 0:00:12]} 40. Ne6+ {[%clk 0:00:48]}  Kf7 {[%clk 0:00:12]} 41. Rxg7+ {[%clk 0:00:42]}  Kxe6 {[%clk 0:00:13]} 42. Bh3+ {[%clk 0:00:37]}  Kd5 {[%clk 0:00:13]} 43. Rxe7 {[%clk 0:00:37]}  Rd2+ {[%clk 0:00:14]} 44. Kg3 {[%clk 0:00:36]}  Rd3+ {[%clk 0:00:14]} 45. Kg4 {[%clk 0:00:36]}  Rxa3 {[%clk 0:00:15]} 46. Rd7+ {[%clk 0:00:36]}  Ke6 {[%clk 0:00:14]} 47. Rd6+ {[%clk 0:00:36]}  Kf7 {[%clk 0:00:14]} 48. Bg2 {[%clk 0:00:35]}  a4 {[%clk 0:00:13]} 49. Bd5+ {[%clk 0:00:35]}  Ke7 {[%clk 0:00:13]} 50. Re6+ {[%clk 0:00:34]}  Kd7 {[%clk 0:00:13]} 51. Ra6 {[%clk 0:00:34]}  Rd3 {[%clk 0:00:07]} 52. Ra7+ {[%clk 0:00:32]}  Kd8 {[%clk 0:00:07]} 53. Bf6+ {[%clk 0:00:31]}  Ke8 {[%clk 0:00:05]} 54. Bc6+ {[%clk 0:00:29]}  Kf8 {[%clk 0:00:04]} 55. Bxa4 {[%clk 0:00:29]}  Ra3 {[%clk 0:00:02]} 56. h4 {[%clk 0:00:23]}  Ra2 {[%clk 0:00:02]} 57. h5 {[%clk 0:00:22]}  Rg2+ {[%clk 0:00:02]} 58. Kf5 {[%clk 0:00:22]}  Rh2 {[%clk 0:00:02]} 59. Bg7+ {[%clk 0:00:21]}  Kg8 {[%clk 0:00:02]} 60. Bb3+ {[%clk 0:00:21]}  Kh7 {[%clk 0:00:02]} 61. Bf6+ {[%clk 0:00:21]}  Kh6 {[%clk 0:00:03]} 62. Bg5+ {[%clk 0:00:21]}  Kxh5 {[%clk 0:00:02]} 63. Rh7# {[%clk 0:00:22]} 1-0


[Site "https://www.chess.com"]